[Event "Titled Tuesday Blitz January 31 Late 2023"]
[White "Rostomyan, Mikayel"]
[Black "Haszon, David"]
[WhiteFideId "13313754"]
[BlackFideId "733610"]
[WhiteElo "2222"]
[BlackElo "2264"]
[Result "1-0"]
[Round "04"]
[TimeControl "180+2"]
[Date "2023.01.31"]
[WhiteClock "0:00:46"]
[BlackClock "0:00:15"]

1. d4 {[%clk 0:03:00]}  Nf6 {[%clk 0:02:59]} 2. Nf3 {[%clk 0:02:55]}  e6 {[%clk 0:02:59]} 3. c4 {[%clk 0:02:50]}  b6 {[%clk 0:02:50]} 4. g3 {[%clk 0:02:46]}  Ba6 {[%clk 0:02:48]} 5. Qc2 {[%clk 0:02:42]}  c5 {[%clk 0:02:42]} 6. Bg2 {[%clk 0:02:40]}  Bb7 {[%clk 0:02:38]} 7. d5 {[%clk 0:02:39]}  exd5 {[%clk 0:02:35]} 8. Nh4 {[%clk 0:02:38]}  Nc6 {[%clk 0:02:14]} 9. cxd5 {[%clk 0:02:27]}  Nb4 {[%clk 0:02:01]} 10. Qb3 {[%clk 0:02:25]}  Bxd5 {[%clk 0:01:52]} 11. Bxd5 {[%clk 0:02:15]}  Nbxd5 {[%clk 0:01:53]} 12. O-O {[%clk 0:02:10]}  Be7 {[%clk 0:01:49]} 13. e4 {[%clk 0:02:09]}  Nb4 {[%clk 0:01:46]} 14. e5 {[%clk 0:02:04]}  Ng4 {[%clk 0:01:26]} 15. Nf5 {[%clk 0:02:03]}  g6 {[%clk 0:01:21]} 16. Nxe7 {[%clk 0:01:26]}  Qxe7 {[%clk 0:01:20]} 17. Qf3 {[%clk 0:01:27]}  O-O {[%clk 0:00:59]} 18. Qxg4 {[%clk 0:01:25]}  Nc2 {[%clk 0:00:59]} 19. Nc3 {[%clk 0:01:24]}  Nxa1 {[%clk 0:00:56]} 20. Bg5 {[%clk 0:01:22]}  Qxe5 {[%clk 0:00:56]} 21. Rxa1 {[%clk 0:01:21]}  d5 {[%clk 0:00:47]} 22. Rd1 {[%clk 0:01:14]}  d4 {[%clk 0:00:43]} 23. Bf4 {[%clk 0:01:09]}  Qg7 {[%clk 0:00:32]} 24. Nd5 {[%clk 0:01:03]}  f5 {[%clk 0:00:29]} 25. Qf3 {[%clk 0:01:02]}  Rad8 {[%clk 0:00:26]} 26. Nc7 {[%clk 0:01:00]}  Qd7 {[%clk 0:00:18]} 27. Qb3+ {[%clk 0:00:57]}  Kg7 {[%clk 0:00:17]} 28. Ne6+ {[%clk 0:00:56]}  Kf6 {[%clk 0:00:14]} 29. Bg5+ {[%clk 0:00:55]}  Ke5 {[%clk 0:00:13]} 30. Nxd8 {[%clk 0:00:49]}  Rxd8 {[%clk 0:00:14]} 31. Re1+ {[%clk 0:00:48]}  Kd6 {[%clk 0:00:14]} 32. Bxd8 {[%clk 0:00:47]}  Qxd8 {[%clk 0:00:14]} 33. Qe6+ {[%clk 0:00:47]}  Kc7 {[%clk 0:00:14]} 34. Qf7+ {[%clk 0:00:47]}  Qd7 {[%clk 0:00:15]} 35. Re7 {[%clk 0:00:46]} 1-0


[Site "https://www.chess.com"]

[Event "Titled Tuesday Blitz January 31 Late 2023"]
[White "Kouskoutis, Georgios-Alexandros"]
[Black "Chan, Luis"]
[WhiteFideId "4234049"]
[BlackFideId "3216357"]
[WhiteElo "2295"]
[BlackElo "2208"]
[Result "1-0"]
[Round "04"]
[TimeControl "180+2"]
[Date "2023.01.31"]
[WhiteClock "0:00:08"]
[BlackClock "0:00:10"]

1. c4 {[%clk 0:03:00]}  g6 {[%clk 0:02:57]} 2. g3 {[%clk 0:02:58]}  Bg7 {[%clk 0:02:57]} 3. Bg2 {[%clk 0:02:58]}  Nf6 {[%clk 0:02:57]} 4. Nc3 {[%clk 0:02:59]}  O-O {[%clk 0:02:57]} 5. e4 {[%clk 0:03:00]}  d6 {[%clk 0:02:56]} 6. Nge2 {[%clk 0:02:59]}  e5 {[%clk 0:02:56]} 7. O-O {[%clk 0:03:00]}  Nc6 {[%clk 0:02:55]} 8. h3 {[%clk 0:03:00]}  Be6 {[%clk 0:02:55]} 9. d3 {[%clk 0:02:57]}  a5 {[%clk 0:02:43]} 10. Be3 {[%clk 0:02:55]}  Nd7 {[%clk 0:02:35]} 11. Kh2 {[%clk 0:02:43]}  f5 {[%clk 0:02:23]} 12. exf5 {[%clk 0:02:32]}  Bxf5 {[%clk 0:02:18]} 13. d4 {[%clk 0:02:22]}  exd4 {[%clk 0:02:15]} 14. Nxd4 {[%clk 0:02:18]}  Nxd4 {[%clk 0:02:07]} 15. Bxd4 {[%clk 0:02:19]}  Ne5 {[%clk 0:01:20]} 16. Bxb7 {[%clk 0:01:47]}  Rb8 {[%clk 0:01:20]} 17. Bd5+ {[%clk 0:01:41]}  Kh8 {[%clk 0:01:20]} 18. b3 {[%clk 0:01:22]}  Qd7 {[%clk 0:00:52]} 19. Bg2 {[%clk 0:01:11]}  c5 {[%clk 0:00:42]} 20. Bxe5 {[%clk 0:01:02]}  Bxe5 {[%clk 0:00:41]} 21. Rc1 {[%clk 0:01:02]}  Qg7 {[%clk 0:00:35]} 22. Qd2 {[%clk 0:00:47]}  Rbe8 {[%clk 0:00:30]} 23. Nd5 {[%clk 0:00:43]}  Bd4 {[%clk 0:00:28]} 24. Rce1 {[%clk 0:00:40]}  Bd7 {[%clk 0:00:19]} 25. f4 {[%clk 0:00:35]}  Bf5 {[%clk 0:00:16]} 26. Rxe8 {[%clk 0:00:32]}  Rxe8 {[%clk 0:00:17]} 27. Re1 {[%clk 0:00:33]}  Qf7 {[%clk 0:00:16]} 28. Qxa5 {[%clk 0:00:16]}  Kg7 {[%clk 0:00:12]} 29. Rxe8 {[%clk 0:00:13]}  Qxe8 {[%clk 0:00:13]} 30. Qc7+ {[%clk 0:00:13]}  Qd7 {[%clk 0:00:13]} 31. Qxd7+ {[%clk 0:00:14]}  Bxd7 {[%clk 0:00:14]} 32. a4 {[%clk 0:00:08]}  Bc8 {[%clk 0:00:12]} 33. a5 {[%clk 0:00:08]}  Kf7 {[%clk 0:00:10]} 34. Nc7 {[%clk 0:00:07]}  Bc3 {[%clk 0:00:09]} 35. a6 {[%clk 0:00:07]}  Ba5 {[%clk 0:00:10]} 36. a7 {[%clk 0:00:08]}  Bxc7 {[%clk 0:00:10]} 37. a8=Q {[%clk 0:00:08]} 1-0


[Site "https://www.chess.com"]

[Event "Titled Tuesday Blitz January 31 Late 2023"]
[White "Kavutskiy, Konstantin"]
[Black "Pein, Jonathan"]
[WhiteFideId "2026384"]
[BlackFideId "417092"]
[WhiteElo "2414"]
[BlackElo "2265"]
[Result "1-0"]
[Round "04"]
[TimeControl "180+2"]
[Date "2023.01.31"]
[WhiteClock "0:00:32"]
[BlackClock "0:00:02"]

1. d4 {[%clk 0:03:00]}  d6 {[%clk 0:03:00]} 2. e4 {[%clk 0:03:00]}  Nf6 {[%clk 0:02:59]} 3. Nc3 {[%clk 0:02:59]}  e5 {[%clk 0:03:00]} 4. Nf3 {[%clk 0:02:57]}  exd4 {[%clk 0:03:00]} 5. Nxd4 {[%clk 0:02:57]}  g6 {[%clk 0:03:01]} 6. Be2 {[%clk 0:02:42]}  Bg7 {[%clk 0:03:01]} 7. Be3 {[%clk 0:02:41]}  O-O {[%clk 0:03:01]} 8. f3 {[%clk 0:02:35]}  Re8 {[%clk 0:03:01]} 9. O-O {[%clk 0:02:28]}  d5 {[%clk 0:03:01]} 10. Bg5 {[%clk 0:02:26]}  h6 {[%clk 0:02:48]} 11. Bh4 {[%clk 0:02:15]}  g5 {[%clk 0:02:01]} 12. Bf2 {[%clk 0:02:14]}  dxe4 {[%clk 0:02:02]} 13. Nxe4 {[%clk 0:02:13]}  Nxe4 {[%clk 0:02:02]} 14. fxe4 {[%clk 0:02:14]}  Rxe4 {[%clk 0:02:01]} 15. c3 {[%clk 0:02:13]}  Re7 {[%clk 0:01:37]} 16. Nf5 {[%clk 0:02:01]}  Rd7 {[%clk 0:01:25]} 17. Qb3 {[%clk 0:01:59]}  Rd2 {[%clk 0:00:58]} 18. Nxg7 {[%clk 0:01:57]}  Kxg7 {[%clk 0:00:41]} 19. Bd4+ {[%clk 0:01:52]}  Rxd4 {[%clk 0:00:38]} 20. Qxf7+ {[%clk 0:01:51]}  Kh8 {[%clk 0:00:37]} 21. cxd4 {[%clk 0:01:30]}  Nc6 {[%clk 0:00:13]} 22. Bd3 {[%clk 0:01:04]}  Qxd4+ {[%clk 0:00:11]} 23. Kh1 {[%clk 0:01:04]}  Qxd3 {[%clk 0:00:03]} 24. Qf8+ {[%clk 0:01:04]}  Kh7 {[%clk 0:00:03]} 25. Rf7+ {[%clk 0:01:04]}  Kg6 {[%clk 0:00:03]} 26. Rg7+ {[%clk 0:01:03]}  Kh5 {[%clk 0:00:03]} 27. Qf7+ {[%clk 0:01:02]}  Kh4 {[%clk 0:00:03]} 28. Rg6 {[%clk 0:00:43]}  h5 {[%clk 0:00:03]} 29. Qf2+ {[%clk 0:00:39]}  Kg4 {[%clk 0:00:02]} 30. h3+ {[%clk 0:00:38]}  Qxh3+ {[%clk 0:00:01]} 31. gxh3+ {[%clk 0:00:37]}  Kxh3 {[%clk 0:00:02]} 32. Rg1 {[%clk 0:00:34]}  Bg4 {[%clk 0:00:02]} 33. Qh2# {[%clk 0:00:32]} 1-0


[Site "https://www.chess.com"]

[Event "Titled Tuesday Blitz January 31 Late 2023"]
[White "Smith, Garrett L"]
[Black "Yurovskykh, Oleksandr"]
[WhiteFideId "2024829"]
[BlackFideId "14134020"]
[WhiteElo "2047"]
[BlackElo "2328"]
[Result "0-1"]
[Round "04"]
[TimeControl "180+2"]
[Date "2023.01.31"]
[WhiteClock "0:01:05"]
[BlackClock "0:01:04"]

1. e4 {[%clk 0:03:00]}  g6 {[%clk 0:02:57]} 2. d4 {[%clk 0:03:00]}  Bg7 {[%clk 0:02:57]} 3. Nc3 {[%clk 0:03:01]}  d6 {[%clk 0:02:56]} 4. Be3 {[%clk 0:02:58]}  a6 {[%clk 0:02:54]} 5. g4 {[%clk 0:02:58]}  h5 {[%clk 0:02:46]} 6. gxh5 {[%clk 0:02:56]}  Rxh5 {[%clk 0:02:46]} 7. Be2 {[%clk 0:02:54]}  Rh8 {[%clk 0:02:44]} 8. h4 {[%clk 0:02:54]}  Nf6 {[%clk 0:02:41]} 9. h5 {[%clk 0:02:40]}  gxh5 {[%clk 0:02:26]} 10. Nh3 {[%clk 0:02:18]}  Ng4 {[%clk 0:02:20]} 11. Nf4 {[%clk 0:02:14]}  Nxe3 {[%clk 0:02:11]} 12. fxe3 {[%clk 0:02:14]}  e6 {[%clk 0:01:42]} 13. Nxh5 {[%clk 0:02:07]}  Qg5 {[%clk 0:01:43]} 14. Nxg7+ {[%clk 0:01:59]}  Qxg7 {[%clk 0:01:44]} 15. Rxh8+ {[%clk 0:01:55]}  Qxh8 {[%clk 0:01:44]} 16. Kd2 {[%clk 0:01:52]}  Nc6 {[%clk 0:01:39]} 17. Qh1 {[%clk 0:01:50]}  Qxh1 {[%clk 0:01:33]} 18. Rxh1 {[%clk 0:01:51]}  Ke7 {[%clk 0:01:32]} 19. Rh7 {[%clk 0:01:51]}  Bd7 {[%clk 0:01:30]} 20. Bh5 {[%clk 0:01:50]}  Rf8 {[%clk 0:01:27]} 21. Ne2 {[%clk 0:01:34]}  Nd8 {[%clk 0:01:25]} 22. Bf3 {[%clk 0:01:29]}  Bc6 {[%clk 0:01:22]} 23. c4 {[%clk 0:01:28]}  Rg8 {[%clk 0:01:21]} 24. d5 {[%clk 0:01:20]}  Bd7 {[%clk 0:01:21]} 25. Nd4 {[%clk 0:01:14]}  e5 {[%clk 0:01:21]} 26. Nf5+ {[%clk 0:01:10]}  Bxf5 {[%clk 0:01:21]} 27. exf5 {[%clk 0:01:11]}  Kf6 {[%clk 0:01:12]} 28. e4 {[%clk 0:01:11]}  a5 {[%clk 0:01:11]} 29. Ke3 {[%clk 0:01:10]}  b6 {[%clk 0:01:09]} 30. a4 {[%clk 0:01:08]}  Nb7 {[%clk 0:01:09]} 31. Bh5 {[%clk 0:01:07]}  Rf8 {[%clk 0:01:09]} 32. Rh6+ {[%clk 0:01:05]}  Kg7 {[%clk 0:01:04]} 0-1


[Site "https://www.chess.com"]

[Event "Titled Tuesday Blitz January 31 Late 2023"]
[White "Richterova, Natasa"]
[Black "Filgueira, Hernan"]
[WhiteFideId "350591"]
[BlackFideId "101770"]
[WhiteElo "2191"]
[BlackElo "2283"]
[Result "1-0"]
[Round "04"]
[TimeControl "180+2"]
[Date "2023.01.31"]
[WhiteClock "0:00:11"]
[BlackClock "0:00:04"]

1. e4 {[%clk 0:02:59]}  e6 {[%clk 0:03:00]} 2. d4 {[%clk 0:02:59]}  d5 {[%clk 0:03:00]} 3. Nd2 {[%clk 0:02:59]}  c5 {[%clk 0:02:59]} 4. exd5 {[%clk 0:03:00]}  exd5 {[%clk 0:02:58]} 5. Ngf3 {[%clk 0:03:00]}  a6 {[%clk 0:02:58]} 6. dxc5 {[%clk 0:02:58]}  Bxc5 {[%clk 0:02:57]} 7. Be2 {[%clk 0:02:59]}  Ne7 {[%clk 0:02:56]} 8. O-O {[%clk 0:02:59]}  Nbc6 {[%clk 0:02:56]} 9. Nb3 {[%clk 0:03:00]}  Ba7 {[%clk 0:02:56]} 10. c3 {[%clk 0:02:57]}  O-O {[%clk 0:02:56]} 11. Nbd4 {[%clk 0:02:57]}  Qd6 {[%clk 0:02:53]} 12. Bg5 {[%clk 0:02:52]}  Ng6 {[%clk 0:02:48]} 13. Qd2 {[%clk 0:02:22]}  Bg4 {[%clk 0:02:43]} 14. Be3 {[%clk 0:02:20]}  Rae8 {[%clk 0:02:36]} 15. Rfe1 {[%clk 0:02:12]}  Bb8 {[%clk 0:02:35]} 16. g3 {[%clk 0:02:11]}  h6 {[%clk 0:02:29]} 17. b4 {[%clk 0:02:07]}  Qf6 {[%clk 0:01:44]} 18. Nxc6 {[%clk 0:01:46]}  bxc6 {[%clk 0:01:43]} 19. Nd4 {[%clk 0:01:07]}  Bc8 {[%clk 0:01:24]} 20. Bf1 {[%clk 0:01:02]}  Ne5 {[%clk 0:01:18]} 21. Bg2 {[%clk 0:01:02]}  Nc4 {[%clk 0:01:17]} 22. Qd3 {[%clk 0:01:00]}  Re7 {[%clk 0:01:09]} 23. Bd2 {[%clk 0:00:46]}  Ne5 {[%clk 0:00:32]} 24. Qf1 {[%clk 0:00:43]}  g5 {[%clk 0:00:27]} 25. f4 {[%clk 0:00:38]}  Nc4 {[%clk 0:00:21]} 26. Rxe7 {[%clk 0:00:31]}  Qxe7 {[%clk 0:00:21]} 27. Bc1 {[%clk 0:00:30]}  Ba7 {[%clk 0:00:19]} 28. fxg5 {[%clk 0:00:28]}  hxg5 {[%clk 0:00:18]} 29. Kh1 {[%clk 0:00:26]}  f5 {[%clk 0:00:17]} 30. Nxc6 {[%clk 0:00:23]}  Qd7 {[%clk 0:00:07]} 31. Nxa7 {[%clk 0:00:23]}  Bb7 {[%clk 0:00:08]} 32. b5 {[%clk 0:00:21]}  f4 {[%clk 0:00:08]} 33. bxa6 {[%clk 0:00:20]}  f3 {[%clk 0:00:09]} 34. axb7 {[%clk 0:00:20]}  fxg2+ {[%clk 0:00:08]} 35. Qxg2 {[%clk 0:00:21]}  Qxb7 {[%clk 0:00:08]} 36. Bxg5 {[%clk 0:00:18]}  Qxa7 {[%clk 0:00:08]} 37. Qxd5+ {[%clk 0:00:18]}  Qf7 {[%clk 0:00:09]} 38. Qxf7+ {[%clk 0:00:18]}  Rxf7 {[%clk 0:00:10]} 39. Kg2 {[%clk 0:00:17]}  Rc7 {[%clk 0:00:11]} 40. a4 {[%clk 0:00:18]}  Kf7 {[%clk 0:00:12]} 41. Bf4 {[%clk 0:00:17]}  Ra7 {[%clk 0:00:12]} 42. Kf3 {[%clk 0:00:16]}  Ke6 {[%clk 0:00:13]} 43. Ke4 {[%clk 0:00:16]}  Nb2 {[%clk 0:00:13]} 44. a5 {[%clk 0:00:16]}  Nc4 {[%clk 0:00:13]} 45. Kd4 {[%clk 0:00:13]}  Nxa5 {[%clk 0:00:12]} 46. Re1+ {[%clk 0:00:13]}  Kf5 {[%clk 0:00:13]} 47. h4 {[%clk 0:00:11]}  Nc6+ {[%clk 0:00:12]} 48. Kc5 {[%clk 0:00:11]}  Ne7 {[%clk 0:00:12]} 49. Re5+ {[%clk 0:00:11]}  Kg4 {[%clk 0:00:12]} 50. Rg5+ {[%clk 0:00:12]}  Kf3 {[%clk 0:00:12]} 51. h5 {[%clk 0:00:12]}  Ke4 {[%clk 0:00:10]} 52. h6 {[%clk 0:00:12]}  Nf5 {[%clk 0:00:11]} 53. Rg6 {[%clk 0:00:10]}  Ra5+ {[%clk 0:00:08]} 54. Kb4 {[%clk 0:00:10]}  Ra8 {[%clk 0:00:08]} 55. h7 {[%clk 0:00:11]}  Rh8 {[%clk 0:00:07]} 56. Re6+ {[%clk 0:00:11]}  Kf3 {[%clk 0:00:07]} 57. Rf6 {[%clk 0:00:11]}  Kg4 {[%clk 0:00:07]} 58. Rf7 {[%clk 0:00:10]}  Rb8+ {[%clk 0:00:07]} 59. Kc5 {[%clk 0:00:10]}  Rc8+ {[%clk 0:00:05]} 60. Kb6 {[%clk 0:00:11]}  Rh8 {[%clk 0:00:05]} 61. c4 {[%clk 0:00:11]}  Nd6 {[%clk 0:00:04]} 62. Bxd6 {[%clk 0:00:11]}  Rxh7 {[%clk 0:00:04]} 63. Rxh7 {[%clk 0:00:11]} 1-0


[Site "https://www.chess.com"]

[Event "Titled Tuesday Blitz January 31 Late 2023"]
[White "Taboas Rodriguez, Daniel"]
[Black "Mikaelyan, Arman"]
[WhiteFideId "2208466"]
[BlackFideId "13304852"]
[WhiteElo "2371"]
[BlackElo "2523"]
[Result "0-1"]
[Round "04"]
[TimeControl "180+2"]
[Date "2023.01.31"]
[WhiteClock "0:00:08"]
[BlackClock "0:01:07"]

1. d4 {[%clk 0:03:00]}  a6 {[%clk 0:03:00]} 2. Nf3 {[%clk 0:02:59]}  b5 {[%clk 0:03:00]} 3. e4 {[%clk 0:03:00]}  Bb7 {[%clk 0:03:00]} 4. Bd3 {[%clk 0:03:00]}  e6 {[%clk 0:03:01]} 5. O-O {[%clk 0:03:00]}  c5 {[%clk 0:03:01]} 6. d5 {[%clk 0:02:49]}  c4 {[%clk 0:02:58]} 7. Be2 {[%clk 0:02:48]}  Nf6 {[%clk 0:02:58]} 8. dxe6 {[%clk 0:02:43]}  dxe6 {[%clk 0:02:54]} 9. Qxd8+ {[%clk 0:02:42]}  Kxd8 {[%clk 0:02:55]} 10. Ne5 {[%clk 0:02:37]}  Ke8 {[%clk 0:02:38]} 11. a3 {[%clk 0:02:04]}  Bc5 {[%clk 0:02:34]} 12. a4 {[%clk 0:02:00]}  Nbd7 {[%clk 0:02:31]} 13. Nxd7 {[%clk 0:01:59]}  Kxd7 {[%clk 0:02:32]} 14. e5 {[%clk 0:01:52]}  Nd5 {[%clk 0:02:30]} 15. Bf3 {[%clk 0:01:43]}  Ke7 {[%clk 0:02:26]} 16. Nc3 {[%clk 0:01:36]}  b4 {[%clk 0:02:09]} 17. Nxd5+ {[%clk 0:01:36]}  Bxd5 {[%clk 0:02:10]} 18. Bxd5 {[%clk 0:01:22]}  exd5 {[%clk 0:02:11]} 19. g3 {[%clk 0:01:17]}  Ke6 {[%clk 0:02:08]} 20. Re1 {[%clk 0:01:17]}  h5 {[%clk 0:02:03]} 21. Kg2 {[%clk 0:01:17]}  h4 {[%clk 0:02:03]} 22. f4 {[%clk 0:01:17]}  hxg3 {[%clk 0:02:02]} 23. hxg3 {[%clk 0:01:17]}  Rh7 {[%clk 0:02:01]} 24. Bd2 {[%clk 0:01:11]}  Rah8 {[%clk 0:01:57]} 25. Rh1 {[%clk 0:01:11]}  Rxh1 {[%clk 0:01:53]} 26. Rxh1 {[%clk 0:01:12]}  Rxh1 {[%clk 0:01:53]} 27. Kxh1 {[%clk 0:01:12]}  b3 {[%clk 0:01:54]} 28. cxb3 {[%clk 0:01:00]}  cxb3 {[%clk 0:01:55]} 29. Kg2 {[%clk 0:01:01]}  d4 {[%clk 0:01:33]} 30. Kf3 {[%clk 0:00:58]}  Kd5 {[%clk 0:01:34]} 31. Bc1 {[%clk 0:00:15]}  d3 {[%clk 0:01:30]} 32. Bd2 {[%clk 0:00:13]}  Ba3 {[%clk 0:01:17]} 33. Bc1 {[%clk 0:00:13]}  Kc4 {[%clk 0:01:14]} 34. Ke3 {[%clk 0:00:08]}  Bc5+ {[%clk 0:01:13]} 35. Ke4 {[%clk 0:00:08]}  Bd4 {[%clk 0:01:10]} 36. Kf3 {[%clk 0:00:07]}  d2 {[%clk 0:01:07]} 37. Bxd2 {[%clk 0:00:08]}  Bxb2 {[%clk 0:01:07]} 0-1


[Site "https://www.chess.com"]

[Event "Titled Tuesday Blitz January 31 Late 2023"]
[White "Good, Daniel"]
[Black "Dourerassou, Jonathan"]
[WhiteFideId "1302388"]
[BlackFideId "628050"]
[WhiteElo "2141"]
[BlackElo "2414"]
[Result "0-1"]
[Round "04"]
[TimeControl "180+2"]
[Date "2023.01.31"]
[WhiteClock "0:00:38"]
[BlackClock "0:02:19"]

1. d4 {[%clk 0:03:00]}  Nf6 {[%clk 0:02:58]} 2. c4 {[%clk 0:02:56]}  g6 {[%clk 0:02:58]} 3. Nc3 {[%clk 0:02:56]}  Bg7 {[%clk 0:02:59]} 4. e4 {[%clk 0:02:57]}  d6 {[%clk 0:02:59]} 5. f3 {[%clk 0:02:57]}  O-O {[%clk 0:03:00]} 6. Be3 {[%clk 0:02:57]}  Nbd7 {[%clk 0:03:00]} 7. Qd2 {[%clk 0:02:56]}  a6 {[%clk 0:03:01]} 8. O-O-O {[%clk 0:02:54]}  c5 {[%clk 0:03:00]} 9. d5 {[%clk 0:02:49]}  b5 {[%clk 0:03:00]} 10. h4 {[%clk 0:02:33]}  Qa5 {[%clk 0:02:58]} 11. Kb1 {[%clk 0:02:29]}  bxc4 {[%clk 0:02:56]} 12. Bxc4 {[%clk 0:02:29]}  Ne5 {[%clk 0:02:56]} 13. Be2 {[%clk 0:02:22]}  Rb8 {[%clk 0:02:55]} 14. g4 {[%clk 0:01:57]}  Bd7 {[%clk 0:02:44]} 15. h5 {[%clk 0:01:50]}  Nxf3 {[%clk 0:02:33]} 16. Nxf3 {[%clk 0:01:33]}  Nxe4 {[%clk 0:02:32]} 17. Nxe4 {[%clk 0:01:27]}  Rxb2+ {[%clk 0:02:30]} 18. Qxb2 {[%clk 0:01:28]}  Bxb2 {[%clk 0:02:30]} 19. Kxb2 {[%clk 0:01:27]}  Qb4+ {[%clk 0:02:30]} 20. Ka1 {[%clk 0:01:17]}  Qxe4 {[%clk 0:02:29]} 21. Rd3 {[%clk 0:01:12]}  Bb5 {[%clk 0:02:27]} 22. hxg6 {[%clk 0:00:38]}  Bxd3 {[%clk 0:02:19]} 0-1


[Site "https://www.chess.com"]

[Event "Titled Tuesday Blitz January 31 Late 2023"]
[White "Bjelobrk, Igor"]
[Black "Rocks, Daniel"]
[WhiteFideId "4300726"]
[BlackFideId "2402408"]
[WhiteElo "2403"]
[BlackElo "2008"]
[Result "1-0"]
[Round "04"]
[TimeControl "180+2"]
[Date "2023.01.31"]
[WhiteClock "0:01:38"]
[BlackClock "0:00:10"]

1. d4 {[%clk 0:02:59]}  Nf6 {[%clk 0:02:58]} 2. c4 {[%clk 0:03:00]}  e6 {[%clk 0:02:57]} 3. Nc3 {[%clk 0:02:59]}  d5 {[%clk 0:02:56]} 4. Nf3 {[%clk 0:02:59]}  Be7 {[%clk 0:02:54]} 5. g3 {[%clk 0:02:58]}  O-O {[%clk 0:02:54]} 6. Bg2 {[%clk 0:02:58]}  b6 {[%clk 0:02:52]} 7. cxd5 {[%clk 0:02:55]}  exd5 {[%clk 0:02:44]} 8. O-O {[%clk 0:02:54]}  Bb7 {[%clk 0:02:44]} 9. Bf4 {[%clk 0:02:54]}  a6 {[%clk 0:02:29]} 10. Rc1 {[%clk 0:02:53]}  Nbd7 {[%clk 0:02:27]} 11. Nh4 {[%clk 0:02:52]}  Re8 {[%clk 0:02:26]} 12. Nf5 {[%clk 0:02:52]}  Bf8 {[%clk 0:02:26]} 13. Qb3 {[%clk 0:02:52]}  g6 {[%clk 0:01:54]} 14. Nh6+ {[%clk 0:02:50]}  Bxh6 {[%clk 0:01:55]} 15. Bxh6 {[%clk 0:02:49]}  Nf8 {[%clk 0:01:55]} 16. Bg5 {[%clk 0:02:37]}  Kg7 {[%clk 0:01:34]} 17. e3 {[%clk 0:02:34]}  c6 {[%clk 0:01:32]} 18. Bxf6+ {[%clk 0:02:29]}  Kxf6 {[%clk 0:01:32]} 19. Na4 {[%clk 0:02:24]}  Nd7 {[%clk 0:01:29]} 20. Bh3 {[%clk 0:02:24]}  b5 {[%clk 0:01:18]} 21. Bxd7 {[%clk 0:02:22]}  Qxd7 {[%clk 0:01:16]} 22. Nb6 {[%clk 0:02:22]}  Qh3 {[%clk 0:01:09]} 23. Nxa8 {[%clk 0:02:22]}  Bxa8 {[%clk 0:01:06]} 24. Qa3 {[%clk 0:02:19]}  h5 {[%clk 0:01:02]} 25. Qd6+ {[%clk 0:02:13]}  Kg7 {[%clk 0:01:02]} 26. Qf4 {[%clk 0:02:12]}  Re4 {[%clk 0:01:02]} 27. Qf3 {[%clk 0:02:12]}  h4 {[%clk 0:00:51]} 28. Qg2 {[%clk 0:02:11]}  Qe6 {[%clk 0:00:48]} 29. Rc3 {[%clk 0:02:08]}  b4 {[%clk 0:00:45]} 30. Rc5 {[%clk 0:02:07]}  Bb7 {[%clk 0:00:42]} 31. Rfc1 {[%clk 0:02:05]}  Qf5 {[%clk 0:00:32]} 32. a3 {[%clk 0:02:00]}  bxa3 {[%clk 0:00:26]} 33. bxa3 {[%clk 0:02:01]}  hxg3 {[%clk 0:00:18]} 34. hxg3 {[%clk 0:02:00]}  Re8 {[%clk 0:00:16]} 35. a4 {[%clk 0:01:55]}  Rh8 {[%clk 0:00:15]} 36. a5 {[%clk 0:01:55]}  Qf6 {[%clk 0:00:14]} 37. R5c3 {[%clk 0:01:55]}  Bc8 {[%clk 0:00:14]} 38. Rxc6 {[%clk 0:01:54]}  Qf5 {[%clk 0:00:12]} 39. Rxc8 {[%clk 0:01:51]}  Rxc8 {[%clk 0:00:12]} 40. Rxc8 {[%clk 0:01:51]}  Qxc8 {[%clk 0:00:13]} 41. Qxd5 {[%clk 0:01:51]}  Qc1+ {[%clk 0:00:13]} 42. Kg2 {[%clk 0:01:51]}  Qd1 {[%clk 0:00:13]} 43. Qe5+ {[%clk 0:01:49]}  Kh7 {[%clk 0:00:13]} 44. Qf6 {[%clk 0:01:47]}  Qc2 {[%clk 0:00:11]} 45. Qxf7+ {[%clk 0:01:46]}  Kh6 {[%clk 0:00:10]} 46. Qf8+ {[%clk 0:01:44]}  Kh7 {[%clk 0:00:11]} 47. Qe7+ {[%clk 0:01:40]}  Kh6 {[%clk 0:00:11]} 48. Qh4+ {[%clk 0:01:39]}  Kg7 {[%clk 0:00:11]} 49. d5 {[%clk 0:01:39]}  Qc5 {[%clk 0:00:10]} 50. Qd4+ {[%clk 0:01:38]} 1-0


[Site "https://www.chess.com"]

[Event "Titled Tuesday Blitz January 31 Late 2023"]
[White "Buchenau, Frank"]
[Black "Darini, Pouria"]
[WhiteFideId "4604350"]
[BlackFideId "12502200"]
[WhiteElo "2222"]
[BlackElo "2401"]
[Result "0-1"]
[Round "04"]
[TimeControl "180+2"]
[Date "2023.01.31"]
[WhiteClock "0:00:01"]
[BlackClock "0:00:06"]

1. e4 {[%clk 0:03:00]}  e5 {[%clk 0:03:00]} 2. Bc4 {[%clk 0:02:59]}  Nf6 {[%clk 0:02:58]} 3. d3 {[%clk 0:02:59]}  Nc6 {[%clk 0:02:58]} 4. Nf3 {[%clk 0:02:57]}  Bc5 {[%clk 0:02:58]} 5. O-O {[%clk 0:02:55]}  d6 {[%clk 0:02:58]} 6. c3 {[%clk 0:02:53]}  a5 {[%clk 0:02:59]} 7. Nbd2 {[%clk 0:02:46]}  O-O {[%clk 0:02:57]} 8. h3 {[%clk 0:02:39]}  Ne7 {[%clk 0:02:57]} 9. d4 {[%clk 0:02:35]}  exd4 {[%clk 0:02:56]} 10. cxd4 {[%clk 0:02:35]}  Bb6 {[%clk 0:02:57]} 11. Bd3 {[%clk 0:02:30]}  Nc6 {[%clk 0:02:57]} 12. d5 {[%clk 0:02:19]}  Nb4 {[%clk 0:02:56]} 13. Bb1 {[%clk 0:02:01]}  Re8 {[%clk 0:02:56]} 14. a3 {[%clk 0:01:54]}  Na6 {[%clk 0:02:56]} 15. Nc4 {[%clk 0:01:39]}  Nc5 {[%clk 0:02:43]} 16. Bg5 {[%clk 0:01:29]}  h6 {[%clk 0:02:39]} 17. Bh4 {[%clk 0:01:28]}  Ncxe4 {[%clk 0:02:37]} 18. Nxb6 {[%clk 0:01:25]}  cxb6 {[%clk 0:02:37]} 19. Nd4 {[%clk 0:01:06]}  Bd7 {[%clk 0:02:11]} 20. Re1 {[%clk 0:01:04]}  g5 {[%clk 0:01:51]} 21. Bg3 {[%clk 0:01:03]}  Nxg3 {[%clk 0:01:52]} 22. fxg3 {[%clk 0:01:02]}  Rxe1+ {[%clk 0:01:53]} 23. Qxe1 {[%clk 0:01:02]}  Qe8 {[%clk 0:01:54]} 24. Qf2 {[%clk 0:00:55]}  Qe5 {[%clk 0:01:52]} 25. Bf5 {[%clk 0:00:52]}  Ne4 {[%clk 0:01:35]} 26. Bxe4 {[%clk 0:00:48]}  Qxe4 {[%clk 0:01:36]} 27. Re1 {[%clk 0:00:39]}  Qxd5 {[%clk 0:01:21]} 28. Re7 {[%clk 0:00:39]}  Rd8 {[%clk 0:00:36]} 29. Qf6 {[%clk 0:00:37]}  Bc8 {[%clk 0:00:35]} 30. Kh2 {[%clk 0:00:26]}  Rf8 {[%clk 0:00:28]} 31. a4 {[%clk 0:00:20]}  Qc4 {[%clk 0:00:20]} 32. Nb5 {[%clk 0:00:17]}  Qd3 {[%clk 0:00:02]} 33. Nxd6 {[%clk 0:00:16]}  Qg6 {[%clk 0:00:03]} 34. Qe5 {[%clk 0:00:15]}  Be6 {[%clk 0:00:03]} 35. Nxb7 {[%clk 0:00:13]}  h5 {[%clk 0:00:03]} 36. Nd6 {[%clk 0:00:12]}  h4 {[%clk 0:00:03]} 37. Ne4 {[%clk 0:00:12]}  hxg3+ {[%clk 0:00:03]} 38. Kxg3 {[%clk 0:00:13]}  Rc8 {[%clk 0:00:03]} 39. Nf6+ {[%clk 0:00:12]}  Kf8 {[%clk 0:00:04]} 40. Rb7 {[%clk 0:00:11]}  Qd3+ {[%clk 0:00:03]} 41. Kh2 {[%clk 0:00:11]}  Qf5 {[%clk 0:00:03]} 42. Qd6+ {[%clk 0:00:10]}  Kg7 {[%clk 0:00:04]} 43. Qd4 {[%clk 0:00:10]}  Kg6 {[%clk 0:00:04]} 44. Ne4 {[%clk 0:00:09]}  Rc4 {[%clk 0:00:03]} 45. Qd8 {[%clk 0:00:05]}  Qxe4 {[%clk 0:00:03]} 46. Qg8+ {[%clk 0:00:06]}  Kf6 {[%clk 0:00:04]} 47. Qh8+ {[%clk 0:00:06]}  Kf5 {[%clk 0:00:04]} 48. g4+ {[%clk 0:00:03]}  Kf4 {[%clk 0:00:04]} 49. Qf6+ {[%clk 0:00:03]}  Ke3 {[%clk 0:00:04]} 50. Qf1 {[%clk 0:00:02]}  Qf4+ {[%clk 0:00:05]} 51. Qxf4+ {[%clk 0:00:01]}  gxf4 {[%clk 0:00:06]} 52. Rxb6 {[%clk 0:00:01]}  Rc2+ {[%clk 0:00:06]} 0-1


[Site "https://www.chess.com"]